fUST/lending_fUST_20260117
["ID","MTS","AMOUNT","RATE_DAILY","PERIOD"]
[402260274,1768629051337,-1119.41,0.00019178,3]
[402260275,1768629051346,-500.0,0.00019178,3]
[402260276,1768629051355,-1041.52,0.00019178,3]
[402260277,1768629051364,-500.0,0.00019178,3]
[402260278,1768629051374,-2042.09,0.00019178,3]
[402260279,1768629051383,-1238.53,0.00019178,3]
[402260280,1768629051392,-564.33,0.00019178,3]
[402260281,1768629051401,-233.19102223,0.00019178,3]
[402260282,1768629051411,-500.0,0.00019178,3]
[402260283,1768629051420,-1122.96,0.00019178,3]
[402260284,1768629051429,-500.0,0.00019178,3]
[402260285,1768629051438,-854.43,0.00019178,3]
[402260286,1768629051447,-500.0,0.00019178,3]
[402260287,1768629051457,-500.0,0.00019178,3]
[402260288,1768629051467,-556.65,0.00019178,3]
[402260289,1768629051477,-500.0,0.00019178,3]
[402260290,1768629051486,-1743.64,0.00019178,3]
[402260291,1768629051496,-500.0,0.00019178,3]
[402260292,1768629051505,-500.0,0.00019178,3]
[402260293,1768629051515,-1235.59,0.00019178,3]
[402260294,1768629051524,-500.0,0.00019178,3]
[402260295,1768629051534,-500.0,0.00019178,3]
[402260296,1768629051543,-512.26319681,0.00019178,3]
[402260297,1768629051553,-500.0,0.00019178,3]
[402260298,1768629051564,-500.0,0.00019178,3]
[402260299,1768629051574,-636.14,0.00019178,3]
[402260300,1768629051583,-1698.81,0.00019178,3]
[402260301,1768629051592,-901.05,0.00019178,3]
[402260302,1768629051602,-500.0,0.00019178,3]
[402260303,1768629051613,-500.0,0.00019178,3]
[402260304,1768629051621,-1501.74,0.00019178,3]
[402260305,1768629051631,-237.94,0.00019178,2]
[402260306,1768629051641,-500.0,0.00019178,3]
[402260307,1768629051650,-500.0,0.00019178,3]
[402260308,1768629051660,-595.71,0.00019178,3]
[402260309,1768629051669,-1683.23,0.00019178,3]
[402260310,1768629051678,-508.18606379,0.00019178,3]
[402260311,1768629051688,-1492.01,0.00019178,3]
[402260312,1768629051697,-500.0,0.00019178,3]
[402260313,1768629051707,-500.0,0.00019178,3]
[402260314,1768629051716,-500.0,0.00019178,3]
[402260315,1768629051726,-500.0,0.00019178,3]
[402260316,1768629051735,-500.0,0.00019178,3]
[402260317,1768629051744,-500.0,0.00019178,3]
[402260318,1768629051754,-500.0,0.00019178,3]
[402260319,1768629051764,-500.0,0.00019178,3]
[402260320,1768629051773,-1884.77,0.00019178,3]
[402260321,1768629051783,-713.18,0.00019178,3]
[402260322,1768629051793,-1350.35,0.00019178,3]
[402260323,1768629051802,-500.0,0.00019178,3]
[402260324,1768629051812,-1732.57,0.00019178,3]
[402260325,1768629051821,-687.72,0.00019178,3]
[402260326,1768629051831,-543.86957114,0.00019178,3]
[402260327,1768629051840,-500.0,0.00019178,3]
[402260328,1768629051849,-1343.55,0.00019178,3]
[402260329,1768629051859,-500.0,0.00019178,2]
[402260330,1768629051868,-500.0,0.00019178,3]
[402260331,1768629051878,-1596.53,0.00019178,3]
[402260332,1768629051887,-500.0,0.00019178,3]
[402260333,1768629051897,-158.856129,0.00019178,3]
[402260334,1768629051907,-500.0,0.00019178,3]
[402260335,1768629051917,-1361.98,0.00019178,3]
[402260336,1768629051926,-500.0,0.00019178,3]
[402260337,1768629051936,-500.0,0.00019178,3]
[402260338,1768629051945,-305.24535383,0.00019178,3]
[402260339,1768629051955,-500.0,0.00019178,3]
[402260340,1768629051964,-645.74,0.00019178,3]
[402260341,1768629051975,-500.0,0.00019178,3]
[402260342,1768629051984,-500.0,0.00019178,3]
[402260343,1768629051994,-500.0,0.00019178,2]
[402260344,1768629052003,-923.37,0.00019178,3]
[402260345,1768629052014,-1547.36,0.00019178,3]
[402260346,1768629052024,-223.13252063,0.00019178,2]
[402260347,1768629052033,-7719.13118149,0.00019178,2]
[402260348,1768629052043,-151.0,0.00019178,2]
[402260349,1768629052053,-151.0,0.00019178,2]
[402260350,1768629052063,-151.0,0.00019178,2]
[402260351,1768629052072,-151.0,0.00019178,2]
[402260352,1768629052082,-151.0,0.00019178,2]
[402260353,1768629052092,-151.0,0.00019178,2]
[402260354,1768629052101,-151.0,0.00019178,2]
[402260355,1768629052111,-151.0,0.00019178,2]
[402260356,1768629052120,-151.0,0.00019178,2]
[402260357,1768629052130,-151.0,0.00019178,2]
[402260358,1768629052140,-151.0,0.00019178,2]
[402260359,1768629052149,-151.0,0.00019178,2]
[402260360,1768629052159,-235.000087,0.00019178,2]
[402260361,1768629052168,-1582.960842,0.00019178,2]
[402260362,1768629052178,-1582.960842,0.00019178,2]
[402260363,1768629052187,-1582.960842,0.00019178,2]
[402260364,1768629052196,-1582.960842,0.00019178,2]
[402260365,1768629052205,-1582.960842,0.00019178,2]
[402260366,1768629052214,-1582.960842,0.00019178,2]
[402260367,1768629052223,-1582.960842,0.00019178,2]
[402260368,1768629052233,-1582.960842,0.00019178,2]
[402260369,1768629052242,-1582.960842,0.00019178,2]
[402260370,1768629052251,-1582.960842,0.00019178,2]
[402260371,1768629052260,-1582.960842,0.00019178,2]
[402260372,1768629052269,-1582.960842,0.00019178,2]
[402260373,1768629052279,-1582.960842,0.00019178,2]
[402260374,1768629052288,-1582.960842,0.00019178,2]
[402260375,1768629052298,-1582.960842,0.00019178,2]
[402260376,1768629052307,-1582.960842,0.00019178,2]
[402260377,1768629052317,-1582.960842,0.00019178,2]
[402260378,1768629052326,-1582.960842,0.00019178,2]
[402260379,1768629052336,-1582.960842,0.00019178,2]
[402260380,1768629052345,-1582.960845,0.00019178,2]
[402260381,1768629052355,-500.0,0.00019178,2]
[402260382,1768629052364,-196.962208,0.00019178,7]
[402260383,1768629052373,-1252.94033003,0.00019192,3]
[402260384,1768629052383,-229.82,0.000192,2]
[402260385,1768629052392,-4113.88,0.000192,2]
[402260386,1768629052401,-167.87,0.000192,2]
[402260387,1768629052410,-242.24,0.000192,2]
[402260388,1768629052419,-32467.64,0.000192,2]
[402260389,1768629052428,-778.0,0.000192,2]
[402260390,1768629052437,-449.0,0.00019238,5]
[402260391,1768629052447,-1343.0,0.00019238,5]
[402260392,1768629052457,-553.0,0.00019238,5]
[402260393,1768629052466,-317807.43161899,0.00019252,2]
[402260394,1768629052475,-303.10001603,0.00019278,2]
[402260395,1768629052485,-652.45719651,0.00019282,46]
[402260396,1768629052495,-153.0,0.00019315,2]
[402260397,1768629052504,-306.0,0.00019315,2]
[402260398,1768629052513,-153.0,0.00019315,2]
[402260399,1768629052523,-153.0,0.00019315,2]
[402260400,1768629052532,-153.0,0.00019315,2]
[402260401,1768629052542,-153.0,0.00019315,2]
[402260402,1768629052551,-153.0,0.00019315,2]
[402260403,1768629052559,-153.0,0.00019315,2]
[402260404,1768629052572,-153.0,0.00019315,2]
[402260405,1768629052582,-153.0,0.00019315,2]
[402260406,1768629052591,-153.0,0.00019315,2]
[402260407,1768629052600,-153.0,0.00019315,2]
[402260408,1768629052610,-194.2841096,0.00019315,2]
[402260409,1768629052618,-153.0,0.00019315,2]
[402260410,1768629052627,-388.5682192,0.00019315,2]
[402260411,1768629052637,-194.2841096,0.00019315,2]
[402260412,1768629052646,-194.2841096,0.00019315,2]
[402260413,1768629052655,-151.0,0.00019397,2]
[402260414,1768629052664,-600.0,0.000194,7]
[402260415,1768629052673,-973.56,0.00019425,3]
[402260416,1768629052682,-201.15907386,0.00019451,2]
[402260417,1768629052691,-1150.89344144,0.00019452,3]
[402260418,1768629052700,-500.0,0.00019452,3]
[402260419,1768629052709,-500.0,0.00019452,3]
[402260420,1768629052719,-500.0,0.00019452,3]
[402260421,1768629052728,-500.0,0.00019452,3]
[402260422,1768629052737,-500.0,0.00019452,3]
[402260423,1768629052746,-500.0,0.00019452,3]
[402260424,1768629052755,-500.0,0.00019452,3]
[402260425,1768629052763,-500.0,0.00019452,3]
[402260426,1768629052773,-500.0,0.00019452,3]
[402260427,1768629052782,-500.0,0.00019452,3]
[402260428,1768629052791,-500.0,0.00019452,3]
[402260429,1768629052801,-500.0,0.00019452,3]
[402260430,1768629052810,-500.0,0.00019452,3]
[402260431,1768629052819,-533.72172427,0.00019452,3]
[402260432,1768629052828,-317.26,0.00019452,2]
[402260433,1768629052838,-542.27541852,0.00019452,3]
[402260434,1768629052847,-500.0,0.00019452,3]
[402260435,1768629052856,-1168.26,0.00019452,3]
[402260436,1768629052865,-500.0,0.00019452,3]
[402260437,1768629052875,-500.0,0.00019452,3]
[402260438,1768629052884,-812.25,0.00019452,3]
[402260439,1768629052893,-674.04,0.00019452,3]
[402260440,1768629052902,-500.0,0.00019452,3]
[402260441,1768629052912,-416.63970504,0.00019452,3]
[402260442,1768629052922,-500.0,0.00019452,3]
[402260443,1768629052932,-500.0,0.00019452,3]
[402260444,1768629052941,-500.0,0.00019452,3]
[402260445,1768629052950,-500.0,0.00019452,3]
[402260446,1768629052960,-501.63539299,0.00019452,3]
[402260447,1768629052970,-500.0,0.00019452,3]
[402260448,1768629052980,-500.0,0.00019452,3]
[402260449,1768629052989,-500.0,0.00019452,3]
[402260450,1768629052998,-500.0,0.00019452,3]
[402260451,1768629053007,-500.0,0.00019452,3]
[402260452,1768629053016,-500.7802133,0.00019452,3]
[402260453,1768629053026,-500.0,0.00019452,3]
[402260454,1768629053036,-500.0,0.00019452,3]
[402260455,1768629053046,-981.3,0.00019452,3]
[402260456,1768629053055,-1606.8,0.00019452,3]
[402260457,1768629053065,-983.01,0.00019452,3]
[402260458,1768629053074,-500.0,0.00019452,3]
[402260459,1768629053084,-391.15037726,0.00019452,3]
[402260460,1768629053093,-591.22,0.00019452,3]
[402260461,1768629053103,-505.83,0.00019452,3]
[402260462,1768629053114,-1910.73,0.00019452,3]
[402260463,1768629053123,-1133.35,0.00019452,3]
[402260464,1768629053133,-500.0,0.00019452,3]
[402260465,1768629053143,-500.0,0.00019452,3]
[402260466,1768629053153,-500.0,0.00019452,3]
[402260467,1768629053162,-500.0,0.00019452,3]
[402260468,1768629053172,-500.0,0.00019452,3]
[402260469,1768629053181,-256.82829765,0.00019452,3]
[402260470,1768629053192,-512.29,0.00019452,3]
[402260471,1768629053201,-500.0,0.00019452,3]
[402260472,1768629053212,-520.58929014,0.00019452,3]
[402260473,1768629053222,-500.0,0.00019452,3]
[402260474,1768629053231,-1720.94,0.00019452,3]
[402260475,1768629053241,-500.0,0.00019452,3]
[402260476,1768629053251,-500.0,0.00019452,3]
[402260477,1768629053261,-500.0,0.00019452,3]
[402260478,1768629053270,-500.0,0.00019452,3]
[402260479,1768629053280,-809.91,0.00019452,3]
[402260480,1768629053290,-606.09,0.00019452,3]
[402260481,1768629053299,-500.0,0.00019452,3]
[402260482,1768629053309,-500.0,0.00019452,3]
[402260483,1768629053319,-500.0,0.00019452,3]
[402260484,1768629053328,-501.25915807,0.00019452,3]
[402260485,1768629053338,-500.0,0.00019452,3]
[402260486,1768629053348,-2020.18,0.00019452,3]
[402260487,1768629053357,-500.0,0.00019452,3]
[402260488,1768629053367,-500.0,0.00019452,3]
[402260489,1768629053377,-500.0,0.00019452,3]
[402260490,1768629053387,-705.55,0.00019452,3]
[402260491,1768629053396,-500.0,0.00019452,3]
[402260492,1768629053406,-500.0,0.00019452,3]
[402260493,1768629053416,-500.0,0.00019452,3]
[402260494,1768629053426,-703.72,0.00019452,3]
[402260495,1768629053436,-500.0,0.00019452,3]
[402260496,1768629053445,-500.0,0.00019452,3]
[402260497,1768629053455,-500.0,0.00019452,3]
[402260498,1768629053465,-706.96,0.00019452,3]
[402260499,1768629053475,-500.0,0.00019452,3]
[402260500,1768629053484,-500.0,0.00019452,3]
[402260501,1768629053496,-500.0,0.00019452,3]
[402260502,1768629053506,-500.0,0.00019452,3]
[402260503,1768629053516,-500.0,0.00019452,3]
[402260504,1768629053525,-500.0,0.00019452,3]
[402260505,1768629053534,-1179.0,0.00019452,3]
[402260506,1768629053544,-500.0,0.00019452,3]
[402260507,1768629053554,-511.3,0.00019452,3]
[402260508,1768629053564,-500.0,0.00019452,3]
[402260509,1768629053577,-504.94137991,0.00019452,3]
[402260510,1768629053587,-500.0,0.00019452,3]
[402260511,1768629053597,-500.0,0.00019452,3]
[402260512,1768629053612,-752.59,0.00019452,3]
[402260513,1768629053622,-856.09,0.00019452,3]
[402260514,1768629053632,-500.0,0.00019452,3]
[402260515,1768629053642,-996.08,0.00019452,3]
[402260516,1768629053652,-1739.86,0.00019452,3]
[402260517,1768629053662,-500.0,0.00019452,3]
[402260518,1768629053672,-503.89,0.00019452,3]
[402260519,1768629053683,-500.0,0.00019452,3]
[402260520,1768629053693,-574.36687477,0.00019452,3]
[402260521,1768629053703,-500.0,0.00019452,3]
[402260522,1768629053713,-500.0,0.00019452,3]
[402260523,1768629053723,-505.52,0.00019452,3]
[402260524,1768629053732,-950.82,0.00019452,3]
[402260525,1768629053742,-787.22,0.00019452,3]
[402260526,1768629053752,-614.93,0.00019452,3]
[402260527,1768629053762,-1044.76988797,0.00019452,3]
[402260528,1768629054250,-290.25011203,0.00019452,3]
[402260529,1768629054260,-577.08160122,0.00019452,3]
[402260530,1768629054269,-540.55,0.00019452,3]
[402260531,1768629054279,-500.0,0.00019452,3]
[402260532,1768629054289,-500.0,0.00019452,3]
[402260533,1768629054298,-598.03709475,0.00019452,3]
[402260534,1768629054307,-500.0,0.00019452,3]
[402260535,1768629054318,-500.0,0.00019452,3]
[402260536,1768629054329,-500.0,0.00019452,3]
[402260537,1768629054339,-500.0,0.00019452,3]
[402260538,1768629054349,-500.0,0.00019452,3]
[402260539,1768629054359,-500.0,0.00019452,3]
[402260540,1768629054369,-565.74,0.00019452,3]
[402260541,1768629054379,-500.0,0.00019452,3]
[402260542,1768629054389,-500.0,0.00019452,3]
[402260543,1768629054398,-500.0,0.00019452,3]
[402260544,1768629054408,-45.1076126,0.00019452,3]
[402260545,1768629054422,-454.8923874,0.00019452,3]
[402260546,1768629054432,-674.1,0.00019452,3]
[402260547,1768629054442,-500.0,0.00019452,3]
[402260548,1768629054453,-500.0,0.00019452,3]
[402260549,1768629054463,-555.0076126,0.00019452,3]
[402260550,1768629054490,-264.5823874,0.00019452,3]
[402260551,1768629054500,-657.53,0.00019452,3]
[402260552,1768629054510,-500.0,0.00019452,3]
[402260553,1768629054520,-1419.09,0.00019452,3]
[402260554,1768629054530,-500.0,0.00019452,3]
[402260555,1768629054540,-500.0,0.00019452,3]
[402260556,1768629054550,-602.97,0.00019452,3]
[402260557,1768629054564,-940.93,0.00019452,3]
[402260558,1768629054577,-500.0,0.00019452,3]
[402260559,1768629054590,-500.0,0.00019452,3]
[402260560,1768629054862,-501.96196416,0.00019452,3]
[402260561,1768629054872,-500.0,0.00019452,3]
[402260562,1768629054881,-933.6,0.00019452,3]
[402260563,1768629054889,-542.81,0.00019452,3]
[402260564,1768629054899,-500.0,0.00019452,3]
[402260565,1768629054908,-1005.03,0.00019452,3]
[402260566,1768629054917,-500.0,0.00019452,3]
[402260567,1768629054927,-756.76,0.00019452,3]
[402260568,1768629054936,-500.0,0.00019452,3]
[402260569,1768629054945,-500.0,0.00019452,3]
[402260570,1768629054953,-1118.79,0.00019452,3]
[402260571,1768629054962,-500.0,0.00019452,3]
[402260572,1768629054971,-603.08,0.00019452,3]
[402260573,1768629054980,-500.0,0.00019452,3]
[402260574,1768629054989,-500.0,0.00019452,3]
[402260575,1768629054997,-1710.74,0.00019452,3]
[402260576,1768629055006,-500.0,0.00019452,3]
[402260577,1768629055016,-500.0,0.00019452,3]
[402260578,1768629055025,-500.0,0.00019452,3]
[402260579,1768629055034,-500.0,0.00019452,3]
[402260580,1768629055043,-500.0,0.00019452,3]
[402260581,1768629055052,-500.0,0.00019452,3]
[402260582,1768629055061,-500.0,0.00019452,2]
[402260583,1768629055070,-500.0,0.00019452,3]
[402260584,1768629055079,-500.0,0.00019452,3]
[402260585,1768629055089,-500.0,0.00019452,3]
[402260586,1768629055098,-624.97,0.00019452,3]
[402260587,1768629055108,-500.0,0.00019452,3]
[402260588,1768629055118,-590.01,0.00019452,3]
[402260589,1768629055127,-500.0,0.00019452,3]
[402260590,1768629055136,-500.0,0.00019452,3]
[402260591,1768629055145,-500.0,0.00019452,3]
[402260592,1768629055154,-500.0,0.00019452,3]
[402260593,1768629055164,-500.0,0.00019452,3]
[402260594,1768629055173,-500.0,0.00019452,3]
[402260595,1768629055182,-500.0,0.00019452,3]
[402260596,1768629055191,-500.0,0.00019452,3]
[402260597,1768629055200,-1187.12,0.00019452,3]
[402260598,1768629055210,-500.0,0.00019452,3]
[402260599,1768629055219,-500.0,0.00019452,3]
[402260600,1768629055228,-853.91,0.00019452,3]
[402260601,1768629055237,-500.0,0.00019452,3]
[402260602,1768629055246,-676.11,0.00019452,3]
[402260603,1768629055256,-500.0,0.00019452,3]
[402260604,1768629055265,-500.0,0.00019452,3]
[402260605,1768629055275,-500.0,0.00019452,3]
[402260606,1768629055285,-214.08,0.00019452,3]
[402260607,1768629055294,-543.92,0.00019452,3]
[402260608,1768629055304,-500.0,0.00019452,3]
[402260609,1768629055313,-500.0,0.00019452,3]
[402260610,1768629055323,-500.0,0.00019452,3]
[402260611,1768629055332,-685.57,0.00019452,3]
[402260612,1768629055342,-500.0,0.00019452,3]
[402260613,1768629055351,-504.12,0.00019452,3]
[402260614,1768629055361,-500.0,0.00019452,3]
[402260615,1768629055370,-500.0,0.00019452,2]
[402260616,1768629055380,-500.0,0.00019452,3]
[402260617,1768629055390,-500.0,0.00019452,3]
[402260618,1768629055400,-500.0,0.00019452,3]
[402260619,1768629055409,-500.0,0.00019452,3]
[402260620,1768629055419,-500.0,0.00019452,3]
[402260621,1768629055428,-1365.06,0.00019452,3]
[402260622,1768629055437,-500.0,0.00019452,3]
[402260623,1768629055447,-1606.8,0.00019452,3]
[402260624,1768629055456,-1109.0,0.00019452,3]
[402260625,1768629055465,-500.0,0.00019452,3]
[402260626,1768629055475,-500.0,0.00019452,3]
[402260627,1768629055484,-500.0,0.00019452,3]
[402260628,1768629055494,-500.0,0.00019452,3]
[402260629,1768629055503,-549.5,0.00019452,3]
[402260630,1768629055514,-500.0,0.00019452,3]
[402260631,1768629055523,-613.91,0.00019452,3]
[402260632,1768629055533,-1025.41,0.00019452,3]
[402260633,1768629055542,-674.07,0.00019452,3]
[402260634,1768629055553,-500.0,0.00019452,3]
[402260635,1768629055563,-526.17897158,0.00019452,3]
[402260636,1768629055576,-500.0,0.00019452,3]
[402260637,1768629055586,-500.0,0.00019452,3]
[402260638,1768629055596,-1152.27,0.00019452,3]
[402260639,1768629055607,-500.0,0.00019452,3]
[402260640,1768629055617,-1336.73,0.00019452,3]
[402260641,1768629055627,-1469.91,0.00019452,3]
[402260642,1768629055636,-567.51,0.00019452,3]
[402260643,1768629055645,-500.0,0.00019452,3]
[402260644,1768629055656,-1060.78,0.00019452,3]
[402260645,1768629055666,-500.0,0.00019452,3]
[402260646,1768629055676,-500.0,0.00019452,3]
[402260647,1768629055685,-500.0,0.00019452,3]
[402260648,1768629055695,-918.67,0.00019452,3]
[402260649,1768629055705,-500.0,0.00019452,3]
[402260650,1768629055715,-500.0,0.00019452,3]
[402260651,1768629055725,-892.89,0.00019452,3]
[402260652,1768629055734,-500.0,0.00019452,3]
[402260653,1768629055743,-500.0,0.00019452,3]
[402260654,1768629055753,-1128.56,0.00019452,3]
[402260655,1768629055762,-500.0,0.00019452,3]
[402260656,1768629055771,-500.0,0.00019452,3]
[402260657,1768629055781,-500.0,0.00019452,3]
[402260658,1768629055790,-500.0,0.00019452,3]
[402260659,1768629055800,-500.0,0.00019452,3]
[402260660,1768629055809,-500.0,0.00019452,3]
[402260661,1768629055819,-1652.81,0.00019452,3]
[402260662,1768629055829,-500.0,0.00019452,3]
[402260663,1768629055838,-500.0,0.00019452,3]
[402260664,1768629055848,-500.0,0.00019452,3]
[402260665,1768629055858,-500.0,0.00019452,3]
[402260666,1768629055867,-500.0,0.00019452,3]
[402260667,1768629055876,-500.0,0.00019452,3]
[402260668,1768629055886,-500.0,0.00019452,3]
[402260669,1768629055895,-847.85,0.00019452,3]
[402260670,1768629055905,-500.0,0.00019452,3]
[402260671,1768629055915,-545.70994322,0.00019452,3]
[402260672,1768629055925,-1047.88,0.00019452,3]
[402260673,1768629055936,-675.29,0.00019452,3]
[402260674,1768629055945,-500.0,0.00019452,3]
[402260675,1768629055955,-1000.0,0.00019452,2]
[402260676,1768629055965,-500.0,0.00019452,3]
[402260677,1768629055974,-827.02,0.00019452,3]
[402260678,1768629055982,-500.0,0.00019452,3]
[402260679,1768629055991,-500.0,0.00019452,3]
[402260680,1768629056001,-507.27,0.00019452,3]
[402260681,1768629056010,-500.0,0.00019452,3]
[402260682,1768629056021,-539.45,0.00019452,3]
[402260683,1768629056031,-500.0,0.00019452,3]
[402260684,1768629056040,-500.0,0.00019452,3]
[402260685,1768629056050,-2229.41,0.00019452,3]
[402260686,1768629056060,-500.0,0.00019452,3]
[402260687,1768629056071,-500.0,0.00019452,3]
[402260688,1768629056081,-2029.03,0.00019452,3]
[402260689,1768629056091,-444.83809808,0.00019452,3]
[402260690,1768629056101,-500.0,0.00019452,3]
[402260691,1768629056111,-500.0,0.00019452,3]
[402260692,1768629056121,-264.29964932,0.00019452,3]
[402260693,1768629056130,-522.75268188,0.00019452,3]
[402260694,1768629056140,-500.0,0.00019452,3]
[402260695,1768629056149,-500.0,0.00019452,3]
[402260696,1768629056159,-500.0,0.00019452,3]
[402260697,1768629056168,-976.72,0.00019452,3]
[402260698,1768629056178,-789.14,0.00019452,3]
[402260699,1768629056187,-500.0,0.00019452,3]
[402260700,1768629056196,-500.0,0.00019452,3]
[402260701,1768629056206,-500.0,0.00019452,3]
[402260702,1768629056216,-500.0,0.00019452,3]
[402260703,1768629056224,-845.61,0.00019452,3]
[402260704,1768629056233,-500.0,0.00019452,3]
[402260705,1768629056243,-500.0,0.00019452,3]
[402260706,1768629056253,-1259.71,0.00019452,3]
[402260707,1768629056262,-500.0,0.00019452,3]
[402260708,1768629056271,-500.0,0.00019452,3]
[402260709,1768629056280,-500.0,0.00019452,3]
[402260710,1768629056290,-500.0,0.00019452,3]
[402260711,1768629056300,-943.5,0.00019452,3]
[402260712,1768629056309,-500.0,0.00019452,3]
[402260713,1768629056319,-500.0,0.00019452,3]
[402260714,1768629056329,-742.2,0.00019452,3]
[402260715,1768629056338,-500.0,0.00019452,3]
[402260716,1768629056347,-245.52,0.00019452,3]
[402260717,1768629056356,-500.0,0.00019452,3]
[402260718,1768629056365,-615.22,0.00019452,3]
[402260719,1768629056375,-500.0,0.00019452,3]
[402260720,1768629056384,-500.0,0.00019452,3]
[402260721,1768629056393,-500.0,0.00019452,3]
[402260722,1768629056403,-1026.15,0.00019452,3]
[402260723,1768629056412,-2095.27,0.00019452,3]
[402260724,1768629056421,-500.0,0.00019452,3]
[402260725,1768629056432,-500.0,0.00019452,3]
[402260726,1768629056442,-500.0,0.00019452,3]
[402260727,1768629056452,-500.0,0.00019452,3]
[402260728,1768629056461,-519.23,0.00019452,3]
[402260729,1768629056471,-500.0,0.00019452,3]
[402260730,1768629056480,-841.97,0.00019452,3]
[402260731,1768629056490,-1854.07,0.00019452,3]
[402260732,1768629056499,-1010.7,0.00019452,3]
[402260733,1768629056508,-500.0,0.00019452,3]
[402260734,1768629056518,-500.0,0.00019452,3]
[402260735,1768629056527,-1718.36,0.00019452,3]
[402260736,1768629056537,-1221.63,0.00019452,3]
[402260737,1768629056547,-500.0,0.00019452,3]
[402260738,1768629056557,-1065.76,0.00019452,3]
[402260739,1768629056572,-500.0,0.00019452,3]
[402260740,1768629056581,-509.29,0.00019452,3]
[402260741,1768629056590,-500.0,0.00019452,3]
[402260742,1768629056599,-685.61,0.00019452,3]
[402260743,1768629056609,-500.0,0.00019452,3]
[402260744,1768629056618,-500.0,0.00019452,3]
[402260745,1768629056628,-500.0,0.00019452,3]
[402260746,1768629056639,-500.0,0.00019452,3]
[402260747,1768629056649,-500.0,0.00019452,3]
[402260748,1768629056659,-500.0,0.00019452,3]
[402260749,1768629056669,-963.56,0.00019452,3]
[402260750,1768629056680,-500.0,0.00019452,3]
[402260751,1768629056692,-1263.46,0.00019452,3]
[402260752,1768629056702,-1264.08,0.00019452,3]
[402260753,1768629056711,-500.0,0.00019452,3]
[402260754,1768629056721,-500.0,0.00019452,3]
[402260755,1768629056731,-500.0,0.00019452,3]
[402260756,1768629056740,-500.0,0.00019452,3]
[402260757,1768629056750,-557.79,0.00019452,3]
[402260758,1768629056759,-500.0,0.00019452,3]
[402260759,1768629056769,-801.67,0.00019452,3]
[402260760,1768629056778,-500.0,0.00019452,3]
[402260761,1768629056788,-500.0,0.00019452,3]
[402260762,1768629056797,-500.0,0.00019452,3]
[402260763,1768629056807,-1507.16,0.00019452,3]
[402260764,1768629056816,-500.0,0.00019452,3]
[402260765,1768629056826,-500.0,0.00019452,3]
[402260766,1768629056836,-500.0,0.00019452,3]
[402260767,1768629056845,-500.0,0.00019452,2]
[402260768,1768629056855,-664.45,0.00019452,3]
[402260769,1768629056865,-1118.91,0.00019452,3]
[402260770,1768629056875,-568.77,0.00019452,3]
[402260771,1768629056884,-325.21716664,0.00019452,3]
[402260772,1768629056894,-500.0,0.00019452,3]
[402260773,1768629056904,-530.78,0.00019452,3]